bitfinex/quotes_SOLUSD_20241125
["timestamp","ask_amount","ask_price","bid_price","bid_amount"]
[1732547633799,0.9410561,238.1,237.93,0.25098]
[1732547634097,0.9410561,238.1,237.86,20.0]
[1732547634296,70.9410561,238.1,237.81,12.0642]
[1732547634472,23.43753181,237.88,237.67,30.1629]
[1732547634787,23.43753181,237.92,237.8,23.43753181]
[1732547634993,23.43753181,237.94,237.84,23.43753181]
[1732547635301,10.0,238.07,237.84,23.43753181]
[1732547635468,71.6801,238.08,237.84,23.43753181]
[1732547635685,0.9410561,238.1,237.77,0.12549]
[1732547635996,0.9410561,238.1,237.83,23.902374]
[1732547636201,0.9410561,238.1,237.87,23.902374]
[1732547636409,23.43753181,238.04,237.94,23.43753181]
[1732547636580,0.9410561,238.1,238.07,0.12549]
[1732547636769,0.9410561,238.1,238.09,23.43753181]
[1732547636970,0.9410561,238.1,237.89,23.776884]
[1732547637192,0.9410561,238.1,237.94,20.0]
[1732547637498,0.9410561,238.1,237.95,0.12549]
[1732547638193,24.37858791,238.1,238.0,23.43753181]
[1732547638399,23.43753181,238.08,237.98,23.43753181]
[1732547638590,23.43753181,238.0,237.89,23.43753181]
[1732547638897,23.43753181,237.94,237.83,23.43753181]
[1732547639198,23.43753181,237.94,237.55,12.1249]
[1732547639199,70.0,237.94,237.55,12.1249]
[1732547639425,20.0,237.96,237.55,12.1249]
[1732547639426,90.0,237.96,237.55,12.1249]
[1732547639580,23.776884,237.93,237.55,12.1249]
[1732547639974,20.0,238.02,237.67,10.0]
[1732547640291,23.43753181,237.85,237.75,23.43753181]
[1732547640603,23.776884,238.01,237.55,12.1249]
[1732547640604,23.43753181,237.77,237.67,23.43753181]
[1732547641109,23.43753181,237.87,237.75,23.43753181]
[1732547641308,0.94531081,237.86,237.77,23.43753181]
[1732547641701,23.43753181,237.93,237.83,23.43753181]
[1732547641911,23.43753181,237.91,237.83,0.12549]
[1732547642083,0.9410561,238.1,237.82,23.43753181]
[1732547642084,23.43753181,238.02,237.92,0.12549]
[1732547642285,23.43753181,238.04,237.94,23.43753181]
[1732547642490,23.43753181,238.04,237.95,0.12549]
[1732547642715,0.9410561,238.1,237.77,10.0]
[1732547642716,0.9410561,238.1,238.03,20.0]
[1732547642908,0.9410561,238.1,238.06,0.25098]
[1732547643421,17.69252693,238.42,238.03,10.0]
[1732547643620,17.69252693,238.42,237.94,25.78982045]
[1732547643621,10.0,238.37,238.07,0.12549]
[1732547643912,23.43753181,238.09,238.02,20.0]
[1732547644089,23.43753181,238.09,238.03,0.12549]
[1732547644290,23.43753181,238.11,238.05,0.12549]
[1732547644589,70.0,238.38,238.1,23.43753181]
[1732547644789,40.22513381,238.39,238.05,0.12549]
[1732547644984,10.0,238.41,238.1,20.25098]
[1732547645186,17.69252693,238.42,238.1,20.25098]
[1732547645187,16.789899,238.39,238.1,20.12549]
[1732547645414,70.0,238.38,238.1,20.12549]
[1732547645607,16.789899,238.39,238.1,0.12549]
[1732547645803,23.43753181,238.22,238.12,23.43753181]
[1732547645993,23.43753181,238.16,238.09,20.0]
[1732547646191,23.43753181,238.21,238.12,0.12549]
[1732547646386,70.0,238.38,238.02,10.0]
[1732547646594,23.43753181,238.39,238.02,10.0]
[1732547646595,10.0,238.37,238.02,10.0]
[1732547646793,23.43753181,238.39,238.03,0.12549]
[1732547646998,18.469546,238.42,237.86,32.3565]
[1732547646999,1.6777,238.41,238.0,10.0]
[1732547647208,16.791846,238.42,238.08,10.0]
[1732547647413,16.791846,238.42,238.1,12.3699]
[1732547647623,23.43753181,238.35,238.24,23.43753181]
[1732547647795,23.43753181,238.29,238.19,23.43753181]
[1732547647996,23.43753181,238.22,238.13,20.0]
[1732547648303,23.43753181,238.24,238.14,23.43753181]
[1732547648491,23.43753181,238.22,238.11,23.43753181]
[1732547648698,23.43753181,238.24,238.13,23.43753181]
[1732547648918,23.43753181,238.24,238.14,0.12549]
[1732547649116,23.43753181,238.24,238.1,0.4199916]
[1732547649117,23.43753181,238.29,238.17,23.43753181]
[1732547649321,23.43753181,238.29,238.19,23.43753181]
[1732547649612,23.43753181,238.31,238.1,0.4199916]
[1732547649811,23.43753181,238.31,238.22,23.43753181]
[1732547649993,23.43753181,238.31,238.23,20.0]
[1732547650194,1.6774,238.47,238.23,23.43753181]
[1732547650395,23.43753181,238.34,238.25,23.43753181]
[1732547650724,23.43753181,238.4,238.29,23.43753181]
[1732547650914,23.43753181,238.34,238.25,23.43753181]
[1732547651228,23.43753181,238.38,238.29,23.43753181]
[1732547651524,23.43753181,238.4,238.3,0.12549]
[1732547651817,23.43753181,238.48,238.39,23.43753181]
[1732547652196,23.43753181,238.5,238.39,23.43753181]
[1732547652406,0.9410561,238.57,238.41,25.62147653]
[1732547652407,25.62147653,238.51,238.41,25.62147653]
[1732547652613,0.9410561,238.57,238.44,25.61554978]
[1732547652921,0.9410561,238.57,238.45,20.0]
[1732547653415,0.9410561,238.57,238.54,25.61554978]
[1732547653824,0.9410561,238.57,238.56,25.61554978]
[1732547654293,1.6742,238.91,238.6,20.25098]
[1732547654498,1.6742,238.91,238.53,10.0]
[1732547654499,70.0,238.86,238.62,25.61554978]
[1732547654913,71.6746,238.86,238.62,25.61554978]
[1732547655299,71.6746,238.86,238.55,25.61554978]
[1732547655300,70.0,238.83,238.55,25.61554978]
[1732547655624,1.6746,238.86,238.45,25.61554978]
[1732547655625,70.0,238.71,238.45,25.61554978]
[1732547655799,20.0,238.68,238.45,25.61554978]
[1732547656120,5.8611,238.86,238.56,25.61554978]
[1732547656121,80.0,238.82,238.56,25.61554978]
[1732547656333,1.6746,238.86,238.6,25.61554978]
[1732547656637,1.6745,238.88,238.64,25.61554978]
[1732547656797,70.0,238.86,238.62,25.61554978]
[1732547657121,11.6745,238.88,238.42,25.61554978]
[1732547657122,10.0,238.88,238.64,25.61554978]
[1732547657298,1.6743,238.9,238.64,25.61554978]
[1732547657499,18.428441,238.9,238.62,25.61554978]
[1732547657829,18.428441,238.9,238.42,25.61554978]
[1732547657830,70.0,238.81,238.52,25.61554978]
[1732547658117,70.0,238.81,238.54,25.61554978]
[1732547658118,0.12549,238.79,238.54,25.61554978]
[1732547658321,0.12549,238.79,238.56,25.61554978]
[1732547658515,0.12549,238.79,238.5,25.61554978]
[1732547658516,0.12549,238.77,238.5,25.61554978]
[1732547658818,20.0,238.7,238.5,25.61554978]
[1732547659027,23.902374,238.76,238.5,25.61554978]
[1732547659028,10.0,238.87,238.6,25.61554978]
[1732547659203,11.6746,238.86,238.56,25.61554978]
[1732547659396,1.6745,238.88,238.62,25.61554978]
[1732547659601,1.6745,238.88,238.42,25.61554978]
[1732547659602,70.0,238.83,238.52,25.61554978]
[1732547659797,70.0,238.83,238.55,25.61554978]
[1732547660137,70.0,238.84,238.57,25.61554978]
[1732547660428,18.428441,238.9,238.64,20.0]
[1732547660622,0.94531081,238.89,238.64,20.0]
[1732547660826,80.0,238.84,238.52,20.0]
[1732547661001,70.0,238.79,238.51,25.61554978]
[1732547661205,70.0,238.75,238.47,25.61554978]
[1732547661425,70.0,238.69,238.39,35.61554978]
[1732547661638,0.12549,238.62,238.39,25.61554978]
[1732547661925,23.776884,238.62,238.47,25.61554978]
[1732547662126,20.0,238.77,238.51,25.61554978]
[1732547662329,81.675,238.8,238.53,25.61554978]
[1732547662532,81.675,238.8,238.51,25.61554978]
[1732547662739,1384.8077399,239.64,238.57,25.61554978]
[1732547662740,70.0,238.83,238.57,25.61554978]
[1732547663029,70.0,238.83,238.42,25.61554978]
[1732547663030,0.12549,238.72,238.45,25.61554978]
[1732547663203,0.12549,238.66,238.41,25.61554978]
[1732547663614,0.12549,238.66,238.31,41.0497]
[1732547663615,0.12549,238.66,238.47,25.61554978]
[1732547663921,4.1879,238.79,238.32,10.0]
[1732547663922,20.12549,238.79,238.53,25.61554978]
[1732547664125,1.675,238.8,238.43,10.0]
[1732547664126,1.675,238.8,238.55,25.61554978]
[1732547664323,0.12549,238.79,238.51,25.61554978]
[1732547664516,1.675,238.8,238.56,20.0]
[1732547664715,70.0,238.82,238.57,25.61554978]
[1732547664913,71.6747,238.85,238.59,25.61554978]
[1732547665127,71.6745,238.87,238.61,25.61554978]
[1732547665330,71.6745,238.87,238.56,20.0]
[1732547665331,71.6745,238.87,238.59,25.61554978]
[1732547665633,18.430426,238.89,238.62,20.0]
[1732547666132,16.756026,238.89,238.67,25.61554978]
[1732547666441,16.751784,238.9,238.65,25.61554978]
[1732547666639,86.751784,238.9,238.64,20.0]
[1732547666810,86.751784,238.9,238.65,25.61554978]
[1732547666811,16.751784,238.9,238.65,25.61554978]
[1732547667006,16.751784,238.9,238.66,20.0]
[1732547667206,1.6744,238.89,238.63,25.61554978]
[1732547667431,5.69281372,238.89,238.61,25.61554978]
[1732547667829,1.6743,238.91,238.65,25.61554978]
[1732547668036,20.0,238.89,238.65,25.61554978]
[1732547668209,20.0,238.88,238.65,25.61554978]
[1732547668531,17.4517626,238.92,238.58,0.12549]
[1732547668532,0.6999486,238.92,238.71,25.61554978]
[1732547668716,0.6999486,238.92,238.69,25.61554978]
[1732547668925,0.6999486,238.92,238.71,25.61554978]
[1732547669125,0.6999486,238.92,238.73,25.61554978]
[1732547669317,0.6999486,238.92,238.68,10.0]
[1732547669318,0.6999486,238.92,238.79,25.61554978]
[1732547669514,0.6999486,238.92,238.81,25.61554978]
[1732547669828,0.6999486,238.92,238.7,25.61554978]
[1732547669829,0.6999486,238.92,238.89,25.61554978]
[1732547670028,0.6999486,238.92,238.87,25.61554978]
[1732547670227,0.6999486,238.92,238.79,10.0]
[1732547670228,0.6999486,238.92,238.89,25.61554978]
[1732547670421,0.6999486,238.92,238.8,0.12549]
[1732547670422,0.6999486,238.92,238.87,25.61554978]
[1732547670616,0.6999486,238.92,238.91,25.61554978]
[1732547671014,10.0,239.22,238.91,25.61554978]
[1732547671015,70.0,239.19,238.91,25.61554978]
[1732547671213,70.0,239.19,238.72,10.0]
[1732547671214,70.0,239.13,238.88,25.61554978]
[1732547671438,70.0,239.13,238.76,13.0876]
[1732547671439,0.94531081,239.12,238.91,25.61554978]
[1732547671826,0.94531081,239.12,238.87,25.61554978]
[1732547672018,0.94531081,239.12,238.85,25.61554978]
[1732547672219,0.12549,239.05,238.76,25.61554978]
[1732547672424,70.0,239.02,238.72,25.61554978]
[1732547672625,70.0,239.02,238.77,25.61554978]
[1732547672822,103.776884,239.12,238.85,25.61554978]
[1732547673021,82.3688,239.19,238.87,25.61554978]
[1732547673241,16.743798,239.03,238.93,25.61554978]
[1732547673444,12.3688,239.19,238.93,25.61554978]
[1732547673741,0.94531081,239.18,238.95,25.61554978]
[1732547673941,70.94531081,239.18,238.95,25.61554978]
[1732547674145,72.61761081,239.18,238.9,25.61554978]
[1732547674478,2.61761081,239.18,238.92,25.61554978]
[1732547674653,0.94531081,239.18,238.94,25.61554978]
[1732547674944,0.94531081,239.18,238.84,35.61554978]
[1732547674945,0.94531081,239.18,238.98,25.61554978]
[1732547675135,70.94531081,239.18,238.73,10.0]
[1732547675338,70.94531081,239.18,238.66,4.1899]
[1732547675339,1.6724,239.17,238.9,25.61554978]
[1732547675644,1.6724,239.17,238.86,25.61554978]
[1732547675645,70.0,239.14,238.86,25.61554978]
[1732547675815,0.12549,239.13,238.88,25.61554978]
[1732547676017,0.12549,239.13,238.9,25.61554978]
[1732547676018,20.12549,239.13,238.9,25.61554978]
[1732547676343,0.94531081,239.18,238.96,25.61554978]
[1732547676721,0.94531081,239.18,238.92,25.61554978]
[1732547676927,0.94531081,239.18,238.94,25.61554978]
[1732547677218,0.94531081,239.18,238.96,25.61554978]
[1732547677440,70.0,239.14,238.86,25.61554978]
[1732547677642,70.0,239.1,238.84,25.61554978]
[1732547677843,1.0,239.05,238.84,25.61554978]
[1732547678150,1.0,239.05,238.7,25.61554978]
[1732547678151,23.902374,239.04,238.86,25.61554978]
[1732547678351,23.776884,239.0,238.85,10.0]
[1732547678578,1.0,239.05,238.93,25.61554978]
[1732547678857,1.0,239.05,238.88,25.61554978]
[1732547679027,1.0,239.05,238.84,25.61554978]
[1732547679429,1.0,239.05,238.7,25.61554978]
[1732547679430,0.12549,239.04,238.8,25.61554978]
[1732547679860,0.12549,239.02,238.8,25.61554978]
[1732547680150,0.12549,239.02,238.63,13.0876]
[1732547680151,70.0,238.98,238.72,25.61554978]
[1732547680358,12.6733,239.05,238.63,13.0876]
[1732547680359,20.0,238.87,238.68,25.61554978]
[1732547680531,23.776884,238.86,238.7,25.61554978]
[1732547680734,23.776884,238.86,238.78,25.61554978]
[1732547681045,2.6733,239.05,238.7,25.61554978]
[1732547681046,20.0,238.98,238.82,25.61554978]
[1732547681249,23.902374,238.97,238.84,25.61554978]
[1732547681431,0.12549,238.96,238.8,25.61554978]
[1732547681630,0.12549,238.96,238.78,25.61554978]
[1732547682128,0.12549,238.96,238.82,25.61554978]
[1732547682648,71.0,239.05,238.73,20.0]
[1732547682649,1.0,239.05,238.88,25.61554978]
[1732547683156,1.0,239.05,238.92,25.61554978]
[1732547683334,1.0,239.05,238.94,25.61554978]
[1732547683733,1.0,239.05,238.94,1.06160985]
[1732547683932,0.12549,239.04,238.94,1.06160985]
[1732547684462,44.027864,239.04,238.94,1.06160985]
[1732547684756,1.0,239.05,238.94,1.06160985]
[1732547684963,1.0,239.05,238.98,25.61554978]
[1732547685546,1.0,239.05,238.96,25.61554978]
[1732547686040,1.0,239.05,238.95,25.61554978]
[1732547686363,1.0,239.05,238.99,25.61554978]
[1732547686554,1.0,239.05,238.94,1.06160985]
[1732547686763,1.0,239.05,238.95,25.61554978]
[1732547687055,1.0,239.05,238.94,1.06160985]
[1732547687432,1.0,239.05,238.95,25.61554978]
[1732547687657,1.0,239.05,238.94,1.06160985]
[1732547688036,1.0,239.05,238.95,25.61554978]
[1732547688245,1.0,239.05,238.99,25.61554978]
[1732547688445,1.0,239.05,239.02,25.61554978]
[1732547688654,1.0,239.05,238.94,1.06160985]
[1732547688655,1.0,239.05,239.04,25.61554978]
[1732547689859,1.0,239.05,239.04,45.61554978]
[1732547690057,1.0,239.05,239.04,25.61554978]
[1732547690256,1.0,239.05,239.02,25.61554978]
[1732547690459,1.0,239.05,239.0,25.61554978]
[1732547690666,1.0,239.05,239.03,20.0]
[1732547690963,1.0,239.05,239.02,25.61554978]
[1732547691145,1.0,239.05,239.0,25.61554978]
[1732547691463,1.0,239.05,238.98,25.61554978]
[1732547691764,1.0,239.05,239.02,25.61554978]
[1732547691964,1.0,239.05,239.04,25.61554978]
[1732547692846,1.0,239.05,239.04,35.61554978]
[1732547693255,1.0,239.05,239.04,25.61554978]
[1732547693450,1.0,239.05,239.04,35.61554978]
[1732547693663,1.0,239.05,239.04,35.74103978]
[1732547694050,1.0,239.05,239.04,35.61554978]
[1732547694390,1.0,239.05,239.04,25.61554978]
[1732547695057,1.0,239.05,238.94,1.06160985]
[1732547695444,1.0,239.05,239.04,25.61554978]
[1732547696670,12.275,239.32,239.1,20.0]
[1732547696876,12.275,239.32,239.17,25.61554978]
[1732547697081,30.8727,239.36,239.19,25.61554978]
[1732547697379,30.8727,239.36,239.17,25.61554978]
[1732547698371,30.8727,239.36,239.15,25.61554978]
[1732547698665,23.3227,239.44,239.26,25.61554978]
[1732547698666,13.3227,239.44,239.26,25.61554978]
[1732547698867,13.3227,239.44,239.28,25.61554978]
[1732547699767,32.4817,239.5,239.32,25.61554978]
[1732547699970,32.4817,239.5,239.26,0.99083586]
[1732547700165,32.4817,239.5,239.3,25.61554978]
[1732547700361,70.0,239.46,239.26,0.99083586]
[1732547700569,0.12549,239.39,239.26,0.99083586]
[1732547700775,10.0,239.45,239.19,0.99083586]
[1732547700776,0.12549,239.3,239.19,0.3096569]
[1732547700951,20.0,239.25,239.19,0.3096569]
[1732547701152,90.0,239.25,239.03,25.61554978]
[1732547701383,82.0119,239.33,239.09,25.61554978]
[1732547701580,82.0119,239.33,238.98,25.61554978]
[1732547701581,0.12549,239.29,239.15,25.61554978]
[1732547701786,12.0119,239.33,239.17,25.61554978]
[1732547701966,70.0,239.44,239.12,25.61554978]
[1732547702273,32.4817,239.5,239.33,25.61554978]
[1732547702477,32.4817,239.5,239.27,25.61554978]
[1732547702658,32.4817,239.5,239.02,5.03866544]
[1732547702659,70.0,239.41,238.99,10.0]
[1732547702860,10.0,239.47,239.05,25.61554978]
[1732547702861,70.0,239.3,239.05,25.61554978]
[1732547703075,70.0,239.27,239.01,25.61554978]
[1732547703372,70.0,239.21,238.97,25.61554978]
[1732547703582,10.0,239.27,238.8,0.7713272]
[1732547703583,33.1257,239.24,238.8,0.7713272]
[1732547703753,24.027864,239.06,238.8,0.7713272]
[1732547703957,23.902374,238.98,238.8,0.7713272]
[1732547704156,0.12549,238.89,238.8,0.7713272]
[1732547704679,33.1257,238.96,238.65,25.61554978]
[1732547704680,0.12549,238.83,238.65,25.61554978]
[1732547704882,46.11717071,238.7,238.56,25.61554978]
[1732547705056,23.91603019,238.57,238.47,9.01148757]
[1732547705374,35.87404528,238.63,238.48,0.62856698]
[1732547705562,51.3916734,238.67,238.62,25.61554978]
[1732547705766,57.64646338,238.74,238.59,12.62]
[1732547705964,57.39566338,238.74,238.73,25.74103978]
[1732547706160,20.9435531,238.96,238.73,25.61554978]
[1732547706359,20.00371206,238.94,238.83,25.61554978]
[1732547706557,20.48766298,238.97,238.83,25.61554978]
[1732547706759,33.94570766,239.03,238.94,20.0]
[1732547707087,10.0,238.9,238.66,31.6262]
[1732547707256,10.0,238.96,238.81,25.61554978]
[1732547707457,33.94570766,239.03,238.83,25.61554978]
[1732547707668,10.0,238.97,238.85,25.61554978]
[1732547707980,10.0,239.0,238.86,25.61554978]
[1732547708178,10.0,239.0,238.71,4.189]
[1732547708179,20.12797401,239.08,238.92,25.61554978]
[1732547708397,20.76496237,239.14,239.01,25.61554978]
[1732547708591,20.76496237,239.14,239.03,25.61554978]
[1732547708766,10.0,239.19,238.85,0.62723717]
[1732547708960,10.0,239.17,238.99,25.61554978]
[1732547709186,13.116,239.29,239.06,25.61554978]
[1732547709187,10.0,239.21,239.06,25.61554978]
[1732547709388,20.39952992,239.2,239.1,25.61554978]
[1732547709592,10.0,239.15,239.0,25.61554978]
[1732547709807,20.0328111,239.18,239.04,25.61554978]
[1732547709968,20.0328111,239.18,239.07,25.61554978]
[1732547710171,10.0,239.22,239.11,25.61554978]
[1732547710172,20.85908888,239.17,239.11,25.61554978]
[1732547710479,10.0,239.22,239.08,25.61554978]
[1732547710662,10.0,239.12,238.95,25.61554978]
[1732547710863,10.0,239.03,238.87,25.61554978]
[1732547711088,10.0,238.98,238.85,25.61554978]
[1732547711262,10.0,239.02,238.85,25.61554978]
[1732547711466,4.83524705,239.11,238.7,29.80474978]
[1732547711467,10.0,238.98,238.87,25.61554978]
[1732547711667,23.776884,238.95,238.83,25.61554978]
[1732547711879,10.0,238.96,238.82,16.734337]
[1732547711880,10.0,239.06,238.89,25.61554978]
[1732547712067,23.776884,238.95,238.82,42.34988678]
[1732547712269,10.0,238.92,238.84,25.61554978]
[1732547712497,23.776884,238.91,238.82,25.61554978]
[1732547712701,23.776884,238.95,238.86,25.61554978]
[1732547712879,10.0,239.09,238.94,25.61554978]
[1732547713068,20.0,239.02,238.7,4.1893]
[1732547713265,10.0,238.97,238.9,25.61554978]
[1732547713488,10.0,239.04,238.92,25.61554978]
[1732547713796,10.0,239.07,238.94,25.61554978]
[1732547713970,10.0,239.09,238.96,25.61554978]
[1732547714168,10.0,239.03,238.94,25.61554978]
[1732547714379,33.309,239.14,238.96,25.61554978]
[1732547714380,10.0,239.11,238.96,25.61554978]
[1732547714694,10.0,239.0,238.93,25.61554978]
[1732547714889,10.0,238.95,238.84,25.61554978]
[1732547715196,10.0,239.0,238.9,25.61554978]
[1732547715379,20.0,238.99,238.79,16.736108]
[1732547715569,10.0,238.94,238.86,25.61554978]
[1732547715774,10.0,238.94,238.79,16.736108]
[1732547715775,20.0,238.9,238.79,16.736108]
[1732547715982,10.0,238.86,238.74,25.61554978]
[1732547716198,10.0,238.84,238.76,25.61554978]
[1732547716498,10.0,238.85,238.78,25.61554978]
[1732547716682,10.0,238.92,238.82,25.61554978]
[1732547716882,10.0,238.96,238.88,25.61554978]
[1732547717108,10.0,238.94,238.88,25.61554978]
[1732547717291,13.1804,239.07,238.71,0.12549]
[1732547717292,10.0,238.97,238.9,25.61554978]
[1732547717604,10.0,238.85,238.76,25.61554978]
[1732547717792,10.0,238.78,238.66,25.61554978]
[1732547717984,10.0,238.76,238.66,25.61554978]
[1732547718172,10.0,238.72,238.64,25.61554978]
[1732547718377,10.0,238.76,238.66,25.61554978]
[1732547718614,10.0,238.74,238.66,25.61554978]
[1732547718908,23.776884,238.78,238.7,25.61554978]
[1732547719400,10.0,238.8,238.7,25.61554978]
[1732547719610,10.0,238.75,238.69,25.61554978]
[1732547719900,33.776884,238.81,238.74,20.0]
[1732547720098,23.776884,238.78,238.73,25.61554978]
[1732547720409,10.0,238.7,238.61,25.61554978]
[1732547720624,12.7264,238.81,238.49,25.61554978]
[1732547720625,10.0,238.6,238.49,25.61554978]
[1732547720801,10.0,238.6,238.35,35.9719]
[1732547720802,10.0,238.57,238.47,25.61554978]
[1732547720986,10.0,238.52,238.43,25.61554978]
[1732547721377,23.776884,238.59,238.49,25.61554978]
[1732547721610,10.0,238.59,238.51,25.61554978]
[1732547721809,10.0,238.49,238.45,37.24038405]
[1732547722110,10.0,238.62,238.47,25.61554978]
[1732547722297,10.0,238.68,238.46,0.12549]
[1732547722487,10.0,238.78,238.67,25.61554978]
[1732547722700,10.0,238.85,238.76,25.61554978]
[1732547723011,10.0,238.86,238.82,25.61554978]
[1732547723182,10.0,238.82,238.79,25.61554978]
[1732547723386,12.875,238.98,238.84,20.0]
[1732547723387,10.0,238.88,238.84,20.0]
[1732547723613,10.0,238.84,238.79,25.61554978]
[1732547723811,10.0,238.87,238.8,25.61554978]
[1732547724100,10.0,238.87,238.82,25.61554978]
[1732547724408,10.0,238.87,238.84,25.61554978]
[1732547724700,10.0,238.87,238.7,25.61554978]
[1732547724701,10.0,238.88,238.81,25.61554978]
[1732547724905,10.0,238.93,238.86,25.61554978]
[1732547725092,10.0,238.95,238.86,25.61554978]
[1732547725296,10.0,239.02,238.94,25.61554978]
[1732547725599,12.3486,239.1,238.84,25.61554978]
[1732547725600,10.0,239.05,238.98,25.61554978]
[1732547725814,10.0,239.02,238.95,45.61554978]
[1732547725980,10.0,239.06,239.01,25.61554978]
[1732547726182,10.0,239.03,239.01,25.61554978]
[1732547726384,10.0,239.02,238.99,25.61554978]
[1732547726614,10.0,239.05,238.99,25.61554978]
[1732547726879,32.3486,239.1,239.01,25.61554978]
[1732547727104,10.0,239.07,239.03,25.61554978]
[1732547727297,10.0,239.08,239.03,25.61554978]
[1732547727495,10.0,239.1,239.03,25.61554978]
[1732547727705,10.0,239.12,239.07,25.61554978]
[1732547728007,10.0,239.13,239.07,25.61554978]
[1732547728208,10.0,239.12,239.09,25.61554978]
[1732547728391,10.0,239.05,239.0,25.61554978]
[1732547728782,20.0,239.15,239.07,20.0]
[1732547729003,20.0,239.19,239.14,20.0]
[1732547729208,10.0,239.15,239.13,25.48074739]
[1732547729407,10.0,239.2,239.15,25.48074739]
[1732547729610,10.0,239.24,239.19,25.48074739]
[1732547729784,10.0,239.25,239.23,25.48074739]
[1732547729981,10.0,239.22,239.21,25.48074739]
[1732547730309,10.0,239.3,239.21,25.48074739]
[1732547730609,10.0,239.33,239.32,20.0]
[1732547730810,10.0,239.37,239.32,25.48074739]
[1732547731014,10.0,239.41,239.36,25.48074739]
[1732547731386,20.0,239.46,239.4,45.48074739]
[1732547731710,10.0,239.46,239.42,25.48074739]
[1732547732089,10.0,239.5,239.44,25.48074739]
[1732547732300,10.0,239.5,239.4,20.0]
[1732547732301,10.0,239.61,239.51,20.0]
[1732547732610,10.0,239.55,239.54,25.48074739]
[1732547732812,10.0,239.55,239.3,12.1408]
[1732547732813,10.0,239.51,239.46,25.48074739]
[1732547733105,74.83524705,239.7,239.43,20.0]
[1732547733106,10.0,239.61,239.53,20.0]
[1732547733307,10.0,239.58,239.57,25.48074739]
[1732547733519,10.0,239.56,239.53,25.48074739]
[1732547733721,10.0,239.54,239.53,25.48074739]
[1732547733887,10.0,239.55,239.51,25.48074739]
[1732547734088,10.0,239.59,239.53,25.48074739]
[1732547734304,10.0,239.6,239.57,25.48074739]
[1732547734504,23.9855272,239.77,239.51,25.48074739]
[1732547734505,10.0,239.53,239.51,25.48074739]
[1732547734722,10.0,239.59,239.54,20.0]
[1732547735015,10.0,239.58,239.54,25.48074739]
[1732547735206,10.0,239.55,239.49,25.48074739]
[1732547735520,10.0,239.52,239.51,25.48074739]
[1732547735813,10.0,239.54,239.51,25.48074739]
[1732547736292,10.0,239.72,239.4,25.48074739]
[1732547736293,10.0,239.59,239.53,70.96149478]
[1732547736616,10.0,239.61,239.58,25.48074739]
[1732547736819,10.0,239.58,239.44,0.12549]
[1732547737112,10.0,239.46,239.29,31.3059]
[1732547737329,10.0,239.42,239.19,4.1807]
[1732547737620,10.0,239.62,239.18,12.492]
[1732547737621,10.0,239.34,239.18,12.492]
[1732547737822,10.0,239.28,239.08,4.1827]
[1732547738115,20.0,239.26,239.25,25.48074739]
[1732547738320,10.0,239.24,239.12,25.48074739]
[1732547738496,10.0,239.3,239.12,25.48074739]
[1732547738692,10.0,239.41,239.12,25.48074739]
[1732547738910,10.0,239.39,239.13,0.12549]
[1732547739213,12.8819,239.51,239.13,0.12549]
[1732547739214,10.0,239.37,239.13,0.12549]
[1732547739416,10.0,239.43,239.13,0.12549]
[1732547739623,10.0,239.66,239.13,0.12549]
[1732547739624,10.0,239.5,239.42,25.48074739]
[1732547739919,10.0,239.52,239.48,25.48074739]
[1732547740093,10.0,239.5,239.49,25.48074739]
[1732547740295,10.0,239.5,239.4,25.48074739]
[1732547740296,10.0,239.48,239.47,25.48074739]
[1732547740494,10.0,239.52,239.47,25.48074739]
[1732547740699,10.0,239.58,239.51,25.48074739]
[1732547740901,10.0,239.54,239.32,23.776884]
[1732547741116,20.0,239.53,239.48,25.48074739]
[1732547741399,10.0,239.5,239.48,25.48074739]
[1732547741610,10.0,239.52,239.51,20.0]